Cogmind - Beta 15 @@@ ROGUE MODE // 2025.09.02 @ 17:13:47 Player: the Result: Destroyed self via exploding Fusion Modulator Performance ------------- Evolutions (0) 0 Regions Visited (1) 200 Robots Destroyed (11) 55 Value Destroyed (259) 259 Prototype IDs (0) 0 Alien Tech Used (0) 0 Bonus (0) 0 TOTAL SCORE: 514 Bonus ------- None Cogmind --------- Core Integrity 0/250 Matter 283/300 Energy 160/160 System Corruption 0% Temperature Cool (37) Movement Rolling (90) Location -10/Materials Parts ------- > --- POWER (1) -------- Light Nuclear Core > --- PROPULSION (2) --- Wheel Compact Wheel > --- UTILITY (2) ------ Heat Sink Small Storage Unit > --- WEAPON (2) ------- Light Assault Rifle > --- INVENTORY (8) ---- Ion Engine Light Treads Light Treads Signal Interpreter Seismic Detector Tractor Beam Mining Laser Peak State ------------ > --- POWER ------------ Light Nuclear Core > --- PROPULSION ------- Wheel Compact Wheel > --- UTILITY ---------- Heat Sink Small Storage Unit > --- WEAPON ----------- Light Assault Rifle Light Assault Rifle > --- INVENTORY -------- Ion Engine Ion Engine Light Treads Light Treads Signal Interpreter Seismic Detector Tractor Beam Mining Laser [Rating: 9] Favorites ----------- Power Ion Engine Engine Ion Engine Power Core Light Nuclear Core Propulsion Wheel Wheel Wheel Utility Small Storage Unit Device Seismic Detector Storage Small Storage Unit Weapon Light Assault Rifle Ballistic Gun Light Assault Rifle Special Weapon Mining Laser Build | -11 -10 ------- Run | Yrd Mat Slots Evolved . | . . Power . | . . Propulsion . | . . Utility . | . . Weapon . | . . Parts Attached 14 | 7 7 Power 2 | 1 1 Engine 1 | 1 . Core 1 | . 1 Reactor . | . . Propulsion 3 | 2 1 Treads . | . . Leg . | . . Wheel 3 | 2 1 Hover . | . . Flight . | . . Utility 4 | 2 2 Device 3 | 1 2 Storage 1 | 1 . Processor . | . . Hackware . | . . Protection . | . . Artifact . | . . Weapon 5 | 2 3 Energy Gun . | . . Energy Cannon . | . . Ballistic Gun 4 | 2 2 Ballistic Cannon . | . . Launcher . | . . Special Weapon 1 | . 1 Impact Weapon . | . . Slashing Weapon . | . . Piercing Weapon . | . . Special Melee Weapon . | . . Unidentified Prototypes . | . . Parts Lost 2 | . 2 Power . | . . Propulsion 1 | . 1 Utility . | . . Weapon 1 | . 1 Highest Loss Streak 1 | . 1 To Critical Strikes . | . . Average Backups 6 | 3 7 Power . | . 1 Propulsion 2 | 2 2 Utility 1 | . 2 Weapon 1 | . 2 Tool/Special . | . . Unused Backups 9 | . 9 Power 1 | . 1 Propulsion 4 | . 4 Utility 3 | . 3 Weapon 1 | . 1 Tool/Special . | . . Average Slot Usage (%) 98 | . 98 Engine 12 | . 12 Core 1 | . 1 Wheel 26 | . 26 Device 14 | . 14 Storage 14 | . 14 Ballistic Gun 22 | . 22 Special Weapon 5 | . 5 Peak Build Rating 9 | 7 9 Average Rating 6 | 4 7 On Entrance 3 | . 7 Naked Turns . | . . Heaviest Build 13 | 13 13 Greatest Support 26 | 20 26 Greatest Overweight (x) 1 | . 1 Average Overweight (x) . | . . Largest Inventory Capacity 8 | 8 8 Average Capacity 7 | 6 8 Most Carried 8 | 7 8 Average Carried 6 | 3 7 Final Capacity 8 | 8 8 Final Carried 7 | 7 7 Class Distribution -------------------- 100% | Mutant Dominant Class ---------------- Mutant | -10/Materials Resources | -11 -10 ----------- Run | Yrd Mat Matter Collected 393 | 296 97 Remotely . | . . Salvage Created 344 | 123 221 Parts 22 | 11 11 Haulers Intercepted . | . . Recyclers Shooed 1 | 1 . Parts Field Recycled . | . . Retrieved Matter . | . . Parts Self-Destructed . | . . Prevented . | . . Kills | -11 -10 ------- Run | Yrd Mat Combat Hostiles Destroyed 4 | . 4 Guns 2 | . 2 AOE 2 | . 2 Classes Destroyed 5 | 3 2 Worker 1 | 1 . Tunneler 3 | 2 1 Recycler 2 | 1 1 Mechanic 1 | . 1 Grunt 4 | . 4 Best Kill Streak 4 | 4 4 Combat Bots Only 2 | . 2 Max Kills in Single Turn 4 | 1 4 Gunslinging . | . . Exploded 2 | . 2 Melee . | . . Uniques/NPCs Destroyed . | . . Combat | -11 -10 -------- Run | Yrd Mat Hostile Shots Fired 40 | . 40 Missed 11 | . 11 Hits 29 | . 29 Projectile 29 | . 29 Critical Strikes 1 | . 1 Damage Taken 662 | . 662 Core 296 | . 296 Absorbed by Shields . | . . Core Remaining (%) 100 | 100 . Volleys Fired 38 | 13 25 Largest 2 | 2 2 Hottest 100 | 40 100 Shots Fired 73 | 26 47 Gun 70 | 26 44 Cannon . | . . Launcher . | . . Special 3 | . 3 Kinetic 70 | 26 44 Thermal 3 | . 3 Explosive . | . . Electromagnetic . | . . Robot Hit Streak 9 | 8 9 Robot Miss Streak 3 | 1 3 Penetration Max . | . . Secondary Targets . | . . Shots Hit Robots 50 | 19 31 Core Hits 23 | 8 15 Critical Kills . | . . Critical Parts Destroyed . | . . Critical Strikes . | . . Melee Attacks . | . . Impact . | . . Slashing . | . . Piercing . | . . Sneak Attacks . | . . Combat Hostiles . | . . Follow-up Attacks . | . . Damage Inflicted 922 | 141 781 Guns 398 | 141 257 Cannons . | . . Explosions 524 | . 524 Melee . | . . Ramming . | . . Kinetic 398 | 141 257 Thermal 524 | . 524 Explosive . | . . Electromagnetic . | . . Impact . | . . Slashing . | . . Piercing . | . . Highest Corruption . | . . Average Corruption . | . . Corruption Purged . | . . Corruption Blocked . | . . Overload Shots . | . . Overflow Damage 196 | . 196 Projectiles . | . . Explosions 196 | . 196 Melee . | . . Knockbacks . | . . Impact . | . . Kinetic . | . . Secondary . | . . Self-Inflicted Damage 277 | . 277 Shots 3 | . 3 Rammed . | . . Targets Rammed . | . . Kicked . | . . Crushed . | . . Highest Temperature 20 | . 20 Average Temperature 10 | . 10 Received Heat Transfer 237 | . 237 Siege Activations . | . . Martial Activations . | . . Shielding Activations . | . . Robots Disrupted . | . . Combat Hostiles . | . . Robots Corrupted . | . . Combat Hostiles . | . . Parts Fried . | . . Impact Corruptions . | . . Robots Melted . | . . Combat Hostiles . | . . Parts Melted . | . . Heat Transferred 300 | . 300 Parts Sabotaged . | . . Parts Stolen . | . . Parts Stripped . | . . Power Chain Reactions . | . . Alert | -11 -10 ------- Run | Yrd Mat Maximum Alert Level . | . . Low Security (%) 100 | 100 100 Level 1 . | . . Level 2 . | . . Level 3 . | . . Level 4 . | . . Level 5 . | . . High Security . | . . Max Security . | . . Peak Influence 45 | 10 45 Initial 3 | . 3 Average 6 | 2 9 Influence Increases 232 | 20 212 Destroy 0b10 Robot/C 80 | . 80 Destroy 0b10 Robot/NC 35 | 20 15 Destroy Leader 20 | . 20 Successful Hack 12 | . 12 Disable Machine 75 | . 75 Destroy Structure 10 | . 10 Influence Decreases 99 | 15 84 Entered New Map 2 | . 2 Time Decay 85 | 15 70 Lost Part 12 | . 12 Squads Dispatched . | . . Investigation . | . . Extermination . | . . Reinforcement . | . . Assault . | . . Garrison . | . . Intercept . | . . Searches Triggered . | . . Construction Impeded . | . . Haulers Reinforced . | . . Active Scanning Responses . | . . Cargo Convoy Interrupts . | . . Stealth | -11 -10 --------- Run | Yrd Mat Distress Signals 1 | . 1 Communications Jammed . | . . Distress Signals . | . . Times Spotted 7 | . 7 Peak Tracking Total 3 | . 3 Tactical Retreats . | . . Traps | -11 -10 ------- Run | Yrd Mat Traps Triggered . | . . Indirectly . | . . Trap Hack Attempts . | . . Triggered . | . . Disarmed . | . . Reprogrammed . | . . Reused . | . . Traps Extracted . | . . Installed . | . . Triggered . | . . Machines | -11 -10 ---------- Run | Yrd Mat Machines Disabled 5 | . 5 Max in Single Turn 4 | . 4 Machines Repaired . | . . Machines Dismantled . | . . Machines Sabotaged . | . . Overloaded Fab Kills . | . . Hacking | -11 -10 --------- Run | Yrd Mat Machines Accessed 2 | . 2 Terminals 2 | . 2 Fabricators . | . . Repair Stations . | . . Recycling Units . | . . Scanalyzers . | . . Garrison Access . | . . Total Hacks 7 | . 7 Successful 5 | . 5 Failed 2 | . 2 Catastrophic . | . . Database Lockouts . | . . Manual 2 | . 2 Terminals 7 | . 7 Fabricators . | . . Repair Stations . | . . Recycling Units . | . . Scanalyzers . | . . Garrison Access . | . . Terminal Hacks 5 | . 5 Record 2 | . 2 Alert Level 1 | . 1 Locate Traps 1 | . 1 Zone Layout 1 | . 1 Fabricator Hacks . | . . Repair Station Hacks . | . . Recycling Unit Hacks . | . . Scanalyzer . | . . Garrison Access Hacks . | . . Unauthorized Hacks . | . . Terminals . | . . Fabricators . | . . Repair Stations . | . . Recycling Units . | . . Scanalyzers . | . . Garrison Access . | . . Data Cores Recovered . | . . Used . | . . Hacking Detections 2 | . 2 Full Trace Events . | . . Feedback Events . | . . Feedback Blocked . | . . Robot Schematics Acquired . | . . Robots Built . | . . Authchips . | . . Time . | . . Total Robot Build Rating . | . . Part Schematics Acquired . | . . Parts Built . | . . Authchips . | . . Time . | . . Total Part Build Rating . | . . Parts Repaired . | . . Time . | . . Parts Recycled . | . . Recycled Matter . | . . Retrieved Matter . | . . Retrieved Components . | . . Parts Scanalyzed . | . . Part Schematics Acquired . | . . Parts Damaged . | . . Bothacking | -11 -10 ------------ Run | Yrd Mat Used RIF Installer . | . . Robots Hacked . | . . Non-combat . | . . Combat . | . . Robot Hacks Applied . | . . Relay Couplers Released . | . . Fabnet Peak Effective % . | . . Robots Rewired . | . . Allies Hacked . | . . Hacks Repelled . | . . Allies | -11 -10 -------- Run | Yrd Mat Total Allies . | . . Largest Group . | . . Highest-Rated Group . | . . Highest-Rated Ally . | . . Total Orders . | . . Ally Attacks . | . . Total Damage . | . . Kills . | . . Allies Corrupted . | . . Allies Melted . | . . Intel | -11 -10 ------- Run | Yrd Mat Active Infowar (turns) 201 | 23 178 Sensors 1 | . 1 Seismic 200 | 23 177 Robot Analysis Total . | . . Derelict Logs Recovered . | . . Drone Launches . | . . Drone Recoveries . | . . Exploration | -11 -10 ------------- Run | Yrd Mat Turns Passed 376 | 113 263 Spaces Moved 236 | 72 164 Core 1 | 1 . Treads . | . . Legs . | . . Wheels 235 | 71 164 Hover . | . . Flight . | . . Fastest Speed 50 | 50 80 Average Speed 80 | 79 81 Slowest Speed 95 | 80 95 Overloaded Moves . | . . Propulsion Burnouts . | . . Robots Hopped . | . . Potential Cave-ins . | . . Cave-ins Triggered . | . . Exploration Rate (%) 20 | 5 36 Regions Visited 1 Branch Regions . Pre-discovered Areas . | . . Known Exits Taken . | . . Unknown Exits Taken 1 | 1 . Scrap Searched . | . . Spaces Dug 2 | . 2 Terrain Destroyed 10 | . 10 Melee . | . . Projectile 2 | . 2 AOE 8 | . 8 Terrain Rammed . | . . Walls Destroyed . | . . Machines Disabled . | . . Actions | -11 -10 --------- Run | Yrd Mat Total 354 | 103 251 Wait 43 | 4 39 Move 235 | 71 164 Hop . | . . Pick Up 15 | 8 7 Fast Attach 7 | 6 1 Attach 2 | 1 1 Detach . | . . Swap 6 | . 6 Drop 8 | . 8 Fire 38 | 13 25 Melee . | . . Ram . | . . Kick . | . . Crush . | . . Escape Stasis . | . . Rewire . | . . Trap . | . . Miscellaneous . | . . Route ------- -11/Scrapyard -10/Materials (discovered 2 exits: [*Mat] / [*Min]) History --------- Turn | Location | Event 18 | -11/Scrapyard | Discovered new exit (range 13) 114 | -11/Scrapyard | Entered Materials 167 | -10/Materials | Discovered new exit (range 15) 288 | -10/Materials | Discovered new exit (range 14) 313 | -10/Materials | Build established: Mutant 377 | -10/Materials | Destroyed self via exploding Fusion Modulator Last Messages --------------- 00351_ R-06 Scavenger collects Particle Gun. 00353_ R-06 Scavenger collects Sml. Storage Unit. 00354_ K-01 Serf collects debris. 00370_ M-13 Machinist repairs G-34 Mercenary. 00372_ K-01 Serf collects debris. 00377_ Fusion Modulator explodes. 00377_ Destroyed Lgt. Nuclear Core. 00377_ G-47 Trooper destroyed. 00377_ M-13 Machinist destroyed. 00377_ Destroyed Aluminum Leg. 00377_ Fusion Modulator explodes. 00377_ Destroyed Wheel. 00377_ T-07 Excavator destroyed. 00377_ Terminal disabled. 00377_ Fusion Modulator explodes. 00377_ Destroyed Lgt. Ion Engine. 00377_ G-34 Mercenary destroyed. 00377_ Lgt. Assault Rifle destroyed. 00377_ Destroyed Lgt. Assault Rifle. Map ----- +----------------------------------------------------+ | | | | | | | | | | | | | | | ?????????????????????????????????????????????? | | ?????????????????????????????????????????????? | | ?????????????????????????????????????????????? | | ?????????????????????????????????????????????? | | ?????????????????????????????????????????????? | | ?????????????? ????????????###??????????????? | | ????????????? ??????????? !##?????????????? | | ?????????# # ## !#?????????????? | | ?????????# ####+#### !#?????????????? | | ?????????# # !#?????????????? | | ?????????# * # < #?????????????? | | ?????????# # ##?????????????? | | ?????????# # #####?????????????? | | ?????????#######+#;; #?????????????????? | | ????????? # ##????????????????? | | ????????? "" # ;#????????????????? | | ????????? T" ; % ;#????????????????? | | ????????? "" + ;#????????????????? | | ????????? # @ ;#????????????????? | | ?????????"" # ;#????????????????? | | ?????????"" # % ##????????????????? | | ?????????"" # k #?????#######?????? | | ????????? # ####### #?????? | | ?????????###### " #?????? | | ??????????????# #?##### | | ??????????????# ### | | ?????????###??# ############ ##" """ | | ????????? #### r##############+##### """ | | ????????? # """ ## # """ | | ????????? # "Y" ## """" # | | ????????? # " " ## """" # """ | | ????????? ######## # ## """" ] # """ | | ????????? ######### # ## # """ | | ????????? # # # ############# | | ????????? # # ####+####### ##+## | | ????????? + """ # | | ????????? # """ + < | | ????????? # """ # """ | | ???????????????????????" ## ##+## | | ?????????????????????????| ????# " "!" #???? | | ?????????????????????????????????#""|"!""#???? | | ?????????????????????????????????#########???? | | ?????????????????????????????????????????????? | +----------------------------------------------------+ Best States ------------- Heat Dissipation 35 Energy Generation 14 Energy Capacity 250 Matter Stores 300 Matter Capacity 300 Sight Range 16 Terrain Scan Density 10 Evasion (%) 44 Item Schematics ----------------- None Robot Schematics ------------------ None Fabricated ------------ Nothing Repaired ---------- Nothing Alien Tech Used ----------------- None Achievements -------------- None Challenges ------------ None Game ------ Seed AntimissileMediumDissipator Manual? 0 Play Time 00:31:47 Cumulative 293.3 hours Start 2025.09.02 @ 16:33:16 End 2025.09.02 @ 17:13:47 Sessions 1 Manual Loads 0 Difficulty Rogue Special Mode None Game No. 204 Rogue 204 Adventurer 0 Explorer 0 Win Type - Total 3 Types 3/0/0/0/0/0/0/0/0/0 Lore% 73 Gallery% 74 Achievement% 60 Wizard Run 0 Options --------- Layout 1 ASCII 0 Keyboard 0 Movement Mouse Keybinds 0 Fullscreen 1 Font 24/Smallcaps Map View 50x40 Zoom Use 31% Tactical HUD 1 Map Filters NONE Filters NONE Steam 1 RUN: c04982c7-cbf8-4c29-945a-1e2d7244ac17